[Event "Early-Titled-Tuesday-Blitz-December-26-2023"]
[Site "Chess.com"]
[Date "2023.12.26"]
[Round "8"]
[White "Matic_Nareks"]
[Black "alvarorodriguezavila"]
[Result "1-0"]
[WhiteElo "2496"]
[BlackElo "2300"]
[TimeControl "180+1"]
[EndTime "9:27:57 PST"]
[Termination "Matic_Nareks won on time"]

1. e4 {[%clk 0:03:00.9]} 1... c5 {[%clk 0:02:59.6]} 2. Nc3 {[%clk 0:03:00.4]}
2... Nc6 {[%clk 0:02:58.7]} 3. Bb5 {[%clk 0:02:57.1]} 3... Nd4 {[%clk
0:02:58.8]} 4. Nf3 {[%clk 0:02:57.1]} 4... g6 {[%clk 0:02:59.1]} 5. Nxd4 {[%clk
0:02:55]} 5... cxd4 {[%clk 0:02:58.1]} 6. Ne2 {[%clk 0:02:55.6]} 6... Bg7 {[%clk
0:02:58]} 7. O-O {[%clk 0:02:55.3]} 7... a6 {[%clk 0:02:58.4]} 8. Bd3 {[%clk
0:02:55]} 8... d5 {[%clk 0:02:51.8]} 9. c3 {[%clk 0:02:52.9]} 9... dxe4 {[%clk
0:02:38.8]} 10. Bxe4 {[%clk 0:02:52.6]} 10... Nf6 {[%clk 0:02:32.1]} 11. Bf3
{[%clk 0:02:47.3]} 11... d3 {[%clk 0:02:22.5]} 12. Ng3 {[%clk 0:02:43.9]} 12...
O-O {[%clk 0:02:20.5]} 13. Re1 {[%clk 0:02:42.2]} 13... Qc7 {[%clk 0:02:05.7]}
14. Re3 {[%clk 0:02:26.5]} 14... Rd8 {[%clk 0:01:57.1]} 15. Qf1 {[%clk
0:02:22.6]} 15... Qd6 {[%clk 0:01:50.3]} 16. b3 {[%clk 0:02:13.2]} 16... Bh6
{[%clk 0:01:50.1]} 17. Ne4 {[%clk 0:02:10]} 17... Nxe4 {[%clk 0:01:47.7]} 18.
Rxe4 {[%clk 0:02:09.4]} 18... Bf5 {[%clk 0:01:48.2]} 19. Rd4 {[%clk 0:02:08.8]}
19... Qf6 {[%clk 0:01:45.1]} 20. Rxd8+ {[%clk 0:02:02.9]} 20... Rxd8 {[%clk
0:01:46]} 21. Bxb7 {[%clk 0:02:03.1]} 21... Bg4 {[%clk 0:01:28.5]} 22. f3 {[%clk
0:01:41.1]} 22... Qb6+ {[%clk 0:01:27.4]} 23. Qf2 {[%clk 0:01:38.1]} 23... Qxb7
{[%clk 0:01:22]} 24. fxg4 {[%clk 0:01:38.3]} 24... Qe4 {[%clk 0:01:18.4]} 25.
Ba3 {[%clk 0:01:28.3]} 25... Qxg4 {[%clk 0:00:44.1]} 26. Rf1 {[%clk 0:01:18.3]}
26... f5 {[%clk 0:00:27.4]} 27. h3 {[%clk 0:01:08]} 27... Qg5 {[%clk 0:00:20.5]}
28. Qb6 {[%clk 0:01:05.1]} 28... Qf6 {[%clk 0:00:12.8]} 29. Qxd8+ {[%clk
0:01:02.6]} 29... Qf8 {[%clk 0:00:02.4]} 30. Qxf8+ {[%clk 0:00:59.5]} 30... Kxf8
{[%clk 0:00:02.9]} 31. Rf3 {[%clk 0:00:59.3]} 1-0

[Event "Early-Titled-Tuesday-Blitz-December-26-2023"]
[Site "Chess.com"]
[Date "2023.12.26"]
[Round "8"]
[White "Alexchess1984"]
[Black "Durarbayli"]
[Result "0-1"]
[WhiteElo "2719"]
[BlackElo "2872"]
[TimeControl "180+1"]
[EndTime "9:28:01 PST"]
[Termination "Durarbayli won by resignation"]

1. e4 {[%clk 0:03:00.9]} 1... c5 {[%clk 0:02:58.4]} 2. Nf3 {[%clk 0:02:59.8]}
2... d6 {[%clk 0:02:58.8]} 3. d4 {[%clk 0:02:59.6]} 3... cxd4 {[%clk 0:02:59.7]}
4. Qxd4 {[%clk 0:03:00.1]} 4... Nf6 {[%clk 0:03:00.6]} 5. Nc3 {[%clk 0:02:59.9]}
5... Nc6 {[%clk 0:02:54.2]} 6. Bb5 {[%clk 0:02:59.6]} 6... Bd7 {[%clk
0:02:49.1]} 7. Bxc6 {[%clk 0:02:59.1]} 7... Bxc6 {[%clk 0:02:49.2]} 8. Bg5
{[%clk 0:02:59.7]} 8... Nd7 {[%clk 0:02:46.9]} 9. O-O-O {[%clk 0:02:57]} 9... h6
{[%clk 0:02:45.2]} 10. Bh4 {[%clk 0:02:56.7]} 10... e5 {[%clk 0:02:36.7]} 11.
Qd3 {[%clk 0:02:25.8]} 11... g5 {[%clk 0:02:07.9]} 12. Bg3 {[%clk 0:02:24.8]}
12... Qa5 {[%clk 0:02:02]} 13. Kb1 {[%clk 0:02:18.7]} 13... Be7 {[%clk
0:01:43.9]} 14. Nd5 {[%clk 0:02:17]} 14... Bxd5 {[%clk 0:01:39]} 15. exd5 {[%clk
0:02:10.9]} 15... Rc8 {[%clk 0:01:29.9]} 16. Qf5 {[%clk 0:02:01.9]} 16... Rc5
{[%clk 0:01:06.2]} 17. h4 {[%clk 0:01:42.6]} 17... g4 {[%clk 0:01:06.5]} 18.
Qxg4 {[%clk 0:01:38.1]} 18... Rxd5 {[%clk 0:01:00.7]} 19. Qe4 {[%clk 0:01:32.1]}
19... Rb5 {[%clk 0:00:54.9]} 20. Qf5 {[%clk 0:00:50.5]} 20... Qb4 {[%clk
0:00:44.7]} 21. b3 {[%clk 0:00:49.4]} 21... e4 {[%clk 0:00:45]} 22. Rd5 {[%clk
0:00:31.9]} 22... Rxd5 {[%clk 0:00:41.6]} 23. Qxd5 {[%clk 0:00:32.8]} 23... exf3
{[%clk 0:00:42.1]} 24. gxf3 {[%clk 0:00:33.7]} 24... Qc3 {[%clk 0:00:37.2]} 25.
Bxd6 {[%clk 0:00:29.8]} 25... Bf6 {[%clk 0:00:37.1]} 26. Qe4+ {[%clk 0:00:20.3]}
26... Kd8 {[%clk 0:00:37.2]} 27. Kc1 {[%clk 0:00:20.7]} 27... Re8 {[%clk
0:00:28.8]} 0-1

[Event "Early-Titled-Tuesday-Blitz-December-26-2023"]
[Site "Chess.com"]
[Date "2023.12.26"]
[Round "8"]
[White "frederiksvane"]
[Black "GMWSO"]
[Result "0-1"]
[WhiteElo "2967"]
[BlackElo "3063"]
[TimeControl "180+1"]
[EndTime "9:28:03 PST"]
[Termination "GMWSO won by resignation"]

1. e4 {[%clk 0:03:00.9]} 1... e5 {[%clk 0:02:55]} 2. Nf3 {[%clk 0:03:01.4]} 2...
Nc6 {[%clk 0:02:55.3]} 3. Bc4 {[%clk 0:03:02]} 3... Bc5 {[%clk 0:02:54.7]} 4. d3
{[%clk 0:02:59.7]} 4... Nf6 {[%clk 0:02:54.5]} 5. c3 {[%clk 0:02:59.7]} 5... d6
{[%clk 0:02:52.9]} 6. O-O {[%clk 0:02:57.6]} 6... O-O {[%clk 0:02:51.3]} 7. Bg5
{[%clk 0:02:56.9]} 7... h6 {[%clk 0:02:50.8]} 8. Bh4 {[%clk 0:02:57.3]} 8... a5
{[%clk 0:02:50.8]} 9. Nbd2 {[%clk 0:02:55]} 9... Ba7 {[%clk 0:02:48.7]} 10. a3
{[%clk 0:02:54.4]} 10... g5 {[%clk 0:02:47.4]} 11. Bg3 {[%clk 0:02:54.2]} 11...
Bg4 {[%clk 0:02:34.1]} 12. b4 {[%clk 0:02:50.1]} 12... Nh5 {[%clk 0:02:31.2]}
13. Kh1 {[%clk 0:02:50.4]} 13... Nxg3+ {[%clk 0:02:26.7]} 14. fxg3 {[%clk
0:02:51.3]} 14... Kg7 {[%clk 0:02:20.6]} 15. h3 {[%clk 0:02:47.7]} 15... Bh5
{[%clk 0:02:15.1]} 16. Qe2 {[%clk 0:02:15.2]} 16... Bg6 {[%clk 0:02:14.6]} 17.
Bd5 {[%clk 0:02:09.7]} 17... Qd7 {[%clk 0:01:52.6]} 18. Nc4 {[%clk 0:02:05.6]}
18... a4 {[%clk 0:01:48.4]} 19. Rab1 {[%clk 0:01:08.6]} 19... Rab8 {[%clk
0:01:45.8]} 20. Ne3 {[%clk 0:01:06.3]} 20... Ne7 {[%clk 0:01:41.9]} 21. Ba2
{[%clk 0:01:05.2]} 21... Bxe3 {[%clk 0:01:37.2]} 22. Qxe3 {[%clk 0:01:05.5]}
22... f5 {[%clk 0:01:38.1]} 23. Rbe1 {[%clk 0:00:49.8]} 23... Qc6 {[%clk
0:01:24.7]} 24. Qd2 {[%clk 0:00:35.8]} 24... fxe4 {[%clk 0:01:18.5]} 25. dxe4
{[%clk 0:00:36]} 25... Bxe4 {[%clk 0:01:16.5]} 26. Nh2 {[%clk 0:00:05.3]} 26...
Nf5 {[%clk 0:01:07.9]} 27. Qf2 {[%clk 0:00:05.3]} 27... Nh4 {[%clk 0:01:02.7]}
28. gxh4 {[%clk 0:00:02.2]} 28... Rxf2 {[%clk 0:01:01.6]} 29. Rxf2 {[%clk
0:00:03.1]} 29... Rf8 {[%clk 0:00:56]} 30. Rxf8 {[%clk 0:00:02.9]} 30... Kxf8
{[%clk 0:00:56.9]} 31. Rf1+ {[%clk 0:00:02]} 31... Ke8 {[%clk 0:00:55.4]} 0-1

[Event "Early-Titled-Tuesday-Blitz-December-26-2023"]
[Site "Chess.com"]
[Date "2023.12.26"]
[Round "8"]
[White "dennisodessa"]
[Black "JohnWhite1952"]
[Result "1-0"]
[WhiteElo "2532"]
[BlackElo "1989"]
[TimeControl "180+1"]
[EndTime "9:28:08 PST"]
[Termination "dennisodessa won by checkmate"]

1. d4 {[%clk 0:03:00.9]} 1... e6 {[%clk 0:02:17.3]} 2. c4 {[%clk 0:02:56.9]}
2... d5 {[%clk 0:02:17.3]} 3. Nc3 {[%clk 0:02:56.9]} 3... Nf6 {[%clk 0:02:17.4]}
4. cxd5 {[%clk 0:02:57.5]} 4... exd5 {[%clk 0:02:16.4]} 5. Bg5 {[%clk
0:02:58.1]} 5... Be7 {[%clk 0:02:15.2]} 6. e3 {[%clk 0:02:58.8]} 6... O-O {[%clk
0:02:13.7]} 7. Bd3 {[%clk 0:02:58.9]} 7... h6 {[%clk 0:02:13.6]} 8. Bh4 {[%clk
0:02:57.7]} 8... c6 {[%clk 0:02:10.4]} 9. Qc2 {[%clk 0:02:56.7]} 9... Nbd7
{[%clk 0:02:07.1]} 10. Nge2 {[%clk 0:02:53.4]} 10... Re8 {[%clk 0:02:06.9]} 11.
O-O {[%clk 0:02:52.6]} 11... Nf8 {[%clk 0:02:06.9]} 12. f3 {[%clk 0:02:45.4]}
12... Qb6 {[%clk 0:02:03.1]} 13. h3 {[%clk 0:02:35.2]} 13... Be6 {[%clk
0:01:59.1]} 14. e4 {[%clk 0:02:32.5]} 14... dxe4 {[%clk 0:01:57.9]} 15. fxe4
{[%clk 0:02:33.4]} 15... c5 {[%clk 0:01:46.1]} 16. Bf2 {[%clk 0:02:28.5]} 16...
cxd4 {[%clk 0:01:36.9]} 17. Nxd4 {[%clk 0:02:29.4]} 17... Qc7 {[%clk 0:01:33.3]}
18. Rac1 {[%clk 0:02:12.7]} 18... a6 {[%clk 0:01:30.3]} 19. Nd5 {[%clk
0:02:04.4]} 19... Nxd5 {[%clk 0:01:27.8]} 20. Qxc7 {[%clk 0:02:02.7]} 20... Nxc7
{[%clk 0:01:26.9]} 21. Rxc7 {[%clk 0:02:03.6]} 21... Bf6 {[%clk 0:01:17.1]} 22.
Rxb7 {[%clk 0:01:59.1]} 22... Bxd4 {[%clk 0:01:14.7]} 23. Bxd4 {[%clk
0:01:58.3]} 23... Bxa2 {[%clk 0:01:14.8]} 24. b3 {[%clk 0:01:53.8]} 24... Red8
{[%clk 0:01:10.7]} 25. Bxg7 {[%clk 0:01:28.6]} 25... Kxg7 {[%clk 0:01:07.1]} 26.
Rfxf7+ {[%clk 0:01:26.9]} 26... Kg6 {[%clk 0:00:58.3]} 27. Bc4 {[%clk
0:01:11.7]} 27... Rab8 {[%clk 0:00:47.9]} 28. Rg7+ {[%clk 0:01:07.9]} 28... Kf6
{[%clk 0:00:42.3]} 29. Rbe7 {[%clk 0:00:45.9]} 29... Bxb3 {[%clk 0:00:28.1]} 30.
g4 {[%clk 0:00:37.7]} 30... Bxc4 {[%clk 0:00:25.3]} 31. e5# {[%clk 0:00:37]} 1-0

[Event "Early-Titled-Tuesday-Blitz-December-26-2023"]
[Site "Chess.com"]
[Date "2023.12.26"]
[Round "8"]
[White "GiorgianBarbosa"]
[Black "Barbix1"]
[Result "1-0"]
[WhiteElo "2482"]
[BlackElo "2284"]
[TimeControl "180+1"]
[EndTime "9:28:18 PST"]
[Termination "GiorgianBarbosa won by checkmate"]

1. c4 {[%clk 0:03:00.9]} 1... e5 {[%clk 0:02:56.7]} 2. g3 {[%clk 0:03:01.8]}
2... d6 {[%clk 0:02:55.1]} 3. Bg2 {[%clk 0:03:02.7]} 3... f5 {[%clk 0:02:53.7]}
4. Nc3 {[%clk 0:03:03.6]} 4... Nf6 {[%clk 0:02:51]} 5. e3 {[%clk 0:03:04.5]}
5... g6 {[%clk 0:02:42.1]} 6. Nge2 {[%clk 0:03:05]} 6... Bg7 {[%clk 0:02:41.9]}
7. O-O {[%clk 0:03:05.9]} 7... O-O {[%clk 0:02:41.4]} 8. b3 {[%clk 0:03:06.8]}
8... c6 {[%clk 0:02:41.7]} 9. Bb2 {[%clk 0:03:07.2]} 9... Be6 {[%clk 0:02:36.2]}
10. d4 {[%clk 0:03:07.8]} 10... e4 {[%clk 0:02:33.5]} 11. d5 {[%clk 0:03:08.2]}
11... cxd5 {[%clk 0:02:26]} 12. cxd5 {[%clk 0:03:08.2]} 12... Nxd5 {[%clk
0:02:20.1]} 13. Qd2 {[%clk 0:03:07.9]} 13... Nxc3 {[%clk 0:02:01.2]} 14. Bxc3
{[%clk 0:03:07.5]} 14... Qe7 {[%clk 0:01:56.4]} 15. Bxg7 {[%clk 0:03:06.5]}
15... Kxg7 {[%clk 0:01:56.7]} 16. Rfd1 {[%clk 0:03:04.7]} 16... Rd8 {[%clk
0:01:54.9]} 17. Rac1 {[%clk 0:03:02]} 17... Nc6 {[%clk 0:01:54.9]} 18. Nd4
{[%clk 0:03:01.4]} 18... Rac8 {[%clk 0:01:34.5]} 19. Nxc6 {[%clk 0:02:59.8]}
19... bxc6 {[%clk 0:01:28.9]} 20. b4 {[%clk 0:02:56.2]} 20... Qf6 {[%clk
0:01:25]} 21. Bf1 {[%clk 0:02:53.6]} 21... c5 {[%clk 0:01:13]} 22. b5 {[%clk
0:02:38.4]} 22... d5 {[%clk 0:01:06.3]} 23. a4 {[%clk 0:02:33.8]} 23... d4
{[%clk 0:00:54.5]} 24. exd4 {[%clk 0:02:33.4]} 24... Rxd4 {[%clk 0:00:50.5]} 25.
Qa5 {[%clk 0:02:27.4]} 25... Qe7 {[%clk 0:00:31.6]} 26. Qc3 {[%clk 0:02:07.7]}
26... Rd8 {[%clk 0:00:26.9]} 27. Re1 {[%clk 0:02:06.6]} 27... c4 {[%clk
0:00:22.8]} 28. a5 {[%clk 0:01:52.3]} 28... Qc5 {[%clk 0:00:22.4]} 29. Rb1
{[%clk 0:01:50.2]} 29... Kg8 {[%clk 0:00:20.5]} 30. b6 {[%clk 0:01:49.9]} 30...
axb6 {[%clk 0:00:18.9]} 31. axb6 {[%clk 0:01:50.8]} 31... Rb8 {[%clk 0:00:15.9]}
32. b7 {[%clk 0:01:48.3]} 32... Bd5 {[%clk 0:00:16.2]} 33. Rec1 {[%clk
0:01:44.3]} 33... Rxb7 {[%clk 0:00:07.7]} 34. Rxb7 {[%clk 0:01:40.6]} 34... Bxb7
{[%clk 0:00:08.6]} 35. Bxc4+ {[%clk 0:01:39.8]} 35... Bd5 {[%clk 0:00:09.2]} 36.
Bxd5+ {[%clk 0:01:37.8]} 36... Qxd5 {[%clk 0:00:10.1]} 37. Qc8+ {[%clk
0:01:37.4]} 37... Kg7 {[%clk 0:00:09.5]} 38. Rc7+ {[%clk 0:01:34.7]} 38... Kh6
{[%clk 0:00:07.4]} 39. Qf8+ {[%clk 0:01:34.1]} 39... Kg5 {[%clk 0:00:07.7]} 40.
Qe7+ {[%clk 0:01:30.5]} 40... Kg4 {[%clk 0:00:07.1]} 41. Qh4+ {[%clk 0:01:16.2]}
41... Kf3 {[%clk 0:00:07.4]} 42. Qf4+ {[%clk 0:01:16.6]} 42... Ke2 {[%clk
0:00:07.3]} 43. Qe3+ {[%clk 0:01:08.5]} 43... Kd1 {[%clk 0:00:07.5]} 44. Rc1#
{[%clk 0:01:06.5]} 1-0

[Event "Early-Titled-Tuesday-Blitz-December-26-2023"]
[Site "Chess.com"]
[Date "2023.12.26"]
[Round "8"]
[White "SaqoChess_Twitch"]
[Black "ljuks68"]
[Result "1-0"]
[WhiteElo "2651"]
[BlackElo "2520"]
[TimeControl "180+1"]
[EndTime "9:28:39 PST"]
[Termination "SaqoChess_Twitch won on time"]

1. d4 {[%clk 0:03:00.9]} 1... d5 {[%clk 0:03:00.1]} 2. c4 {[%clk 0:03:01.5]}
2... c6 {[%clk 0:02:59.8]} 3. Nc3 {[%clk 0:03:02.2]} 3... Nf6 {[%clk 0:03:00.2]}
4. e3 {[%clk 0:03:01.9]} 4... e6 {[%clk 0:03:00.1]} 5. Nf3 {[%clk 0:03:02.5]}
5... Nbd7 {[%clk 0:03:00.3]} 6. Bd3 {[%clk 0:03:03.1]} 6... dxc4 {[%clk
0:03:00]} 7. Bxc4 {[%clk 0:03:04]} 7... b5 {[%clk 0:03:00.3]} 8. Bd3 {[%clk
0:03:04.2]} 8... a6 {[%clk 0:03:00.7]} 9. e4 {[%clk 0:03:04.5]} 9... c5 {[%clk
0:03:00.7]} 10. e5 {[%clk 0:03:05.3]} 10... cxd4 {[%clk 0:02:59.9]} 11. Nxb5
{[%clk 0:03:05.7]} 11... axb5 {[%clk 0:02:59.8]} 12. exf6 {[%clk 0:03:06.2]}
12... gxf6 {[%clk 0:03:00.3]} 13. O-O {[%clk 0:03:06.6]} 13... Bb7 {[%clk
0:03:00.2]} 14. Bxb5 {[%clk 0:03:02.3]} 14... Rg8 {[%clk 0:02:59.5]} 15. g3
{[%clk 0:03:01.9]} 15... e5 {[%clk 0:02:12]} 16. Nxd4 {[%clk 0:02:54.3]} 16...
Qb6 {[%clk 0:01:45.4]} 17. Re1 {[%clk 0:02:32]} 17... Bc5 {[%clk 0:01:34.5]} 18.
Bxd7+ {[%clk 0:02:04.3]} 18... Kxd7 {[%clk 0:01:33.2]} 19. Nb3+ {[%clk
0:01:57.7]} 19... Ke7 {[%clk 0:01:32.7]} 20. Nxc5 {[%clk 0:01:58.3]} 20... Qxc5
{[%clk 0:01:32.7]} 21. Bd2 {[%clk 0:01:52.6]} 21... Qc6 {[%clk 0:00:27.9]} 22.
f3 {[%clk 0:01:51.5]} 22... Qxf3 {[%clk 0:00:24.1]} 23. Bb4+ {[%clk 0:01:49.7]}
23... Ke8 {[%clk 0:00:22.8]} 24. Qxf3 {[%clk 0:01:48.8]} 24... Bxf3 {[%clk
0:00:22.9]} 25. Re3 {[%clk 0:01:47.6]} 25... Bb7 {[%clk 0:00:13.8]} 26. a4
{[%clk 0:01:43.2]} 26... Rg4 {[%clk 0:00:12.8]} 27. Ba3 {[%clk 0:01:35.5]} 27...
Rgxa4 {[%clk 0:00:12]} 28. Rf1 {[%clk 0:01:36.2]} 28... Re4 {[%clk 0:00:09.6]}
29. Rxe4 {[%clk 0:01:35.6]} 29... Bxe4 {[%clk 0:00:09.8]} 30. Rxf6 {[%clk
0:01:36.5]} 30... Rd8 {[%clk 0:00:09.2]} 31. Kf2 {[%clk 0:01:31.9]} 31... Bg6
{[%clk 0:00:06.1]} 32. Ke2 {[%clk 0:01:28.5]} 32... Rc8 {[%clk 0:00:04.8]} 33.
Kd2 {[%clk 0:01:27.1]} 33... Rc2+ {[%clk 0:00:04.8]} 34. Ke3 {[%clk 0:01:27.9]}
34... Rxh2 {[%clk 0:00:05.2]} 35. Ra6 {[%clk 0:01:27.3]} 35... Rg2 {[%clk
0:00:04.3]} 36. Kf3 {[%clk 0:01:26.6]} 36... Rc2 {[%clk 0:00:03.4]} 37. Ra8+
{[%clk 0:01:27.5]} 37... Kd7 {[%clk 0:00:03.5]} 38. Ra7+ {[%clk 0:01:28.4]}
38... Ke6 {[%clk 0:00:04.1]} 39. Ra6+ {[%clk 0:01:27.8]} 39... Kf5 {[%clk
0:00:04.4]} 40. g4+ {[%clk 0:01:28.4]} 40... Kg5 {[%clk 0:00:04.8]} 41. Be7+
{[%clk 0:01:29.1]} 41... f6 {[%clk 0:00:03.8]} 42. Bxf6+ {[%clk 0:01:29]} 42...
Kh6 {[%clk 0:00:04.7]} 43. Ra1 {[%clk 0:01:19.8]} 43... Bd3 {[%clk 0:00:03.1]}
44. Bxe5 {[%clk 0:01:17.1]} 44... Kg6 {[%clk 0:00:03.2]} 45. Ra3 {[%clk
0:01:14.1]} 45... Bc4 {[%clk 0:00:03.3]} 46. Ra7 {[%clk 0:01:10.8]} 46... Bd5+
{[%clk 0:00:03.2]} 47. Kg3 {[%clk 0:01:09.9]} 47... Rc4 {[%clk 0:00:02.8]} 48.
Rg7+ {[%clk 0:01:04.3]} 48... Kh6 {[%clk 0:00:03.2]} 49. Rd7 {[%clk 0:01:02.7]}
49... Kg6 {[%clk 0:00:03.2]} 50. Rd6+ {[%clk 0:01:01.9]} 1-0

[Event "Early-Titled-Tuesday-Blitz-December-26-2023"]
[Site "Chess.com"]
[Date "2023.12.26"]
[Round "8"]
[White "KVAIDAN"]
[Black "DrCeltic"]
[Result "1-0"]
[WhiteElo "2361"]
[BlackElo "2502"]
[TimeControl "180+1"]
[EndTime "9:28:40 PST"]
[Termination "KVAIDAN won on time"]

1. f4 {[%clk 0:02:57.3]} 1... b6 {[%clk 0:02:57.8]} 2. Nf3 {[%clk 0:02:57.1]}
2... Bb7 {[%clk 0:02:58.4]} 3. d3 {[%clk 0:02:45.3]} 3... Bxf3 {[%clk
0:02:57.7]} 4. exf3 {[%clk 0:02:44.7]} 4... Nf6 {[%clk 0:02:58.3]} 5. Nc3 {[%clk
0:02:37.3]} 5... e6 {[%clk 0:02:58.5]} 6. g3 {[%clk 0:02:37.5]} 6... Be7 {[%clk
0:02:53.7]} 7. Bg2 {[%clk 0:02:38]} 7... O-O {[%clk 0:02:53.5]} 8. O-O {[%clk
0:02:38.6]} 8... Nc6 {[%clk 0:02:51.9]} 9. Ne4 {[%clk 0:02:38.2]} 9... d5 {[%clk
0:02:50.2]} 10. Nxf6+ {[%clk 0:02:34.9]} 10... Bxf6 {[%clk 0:02:51.1]} 11. c3
{[%clk 0:02:35.5]} 11... a5 {[%clk 0:02:47.2]} 12. d4 {[%clk 0:02:35.5]} 12...
b5 {[%clk 0:02:47]} 13. Qd3 {[%clk 0:02:34.8]} 13... Rb8 {[%clk 0:02:46.5]} 14.
f5 {[%clk 0:02:35.2]} 14... e5 {[%clk 0:02:43]} 15. dxe5 {[%clk 0:02:32.3]}
15... Nxe5 {[%clk 0:02:43.9]} 16. Qc2 {[%clk 0:02:29.2]} 16... b4 {[%clk
0:02:41.8]} 17. Rd1 {[%clk 0:02:24.1]} 17... c6 {[%clk 0:02:35.1]} 18. Bf4
{[%clk 0:02:20.8]} 18... Qb6+ {[%clk 0:02:28.9]} 19. Kh1 {[%clk 0:02:20.4]}
19... Rbd8 {[%clk 0:02:25]} 20. cxb4 {[%clk 0:02:09.5]} 20... axb4 {[%clk
0:02:24.3]} 21. Bxe5 {[%clk 0:02:05.2]} 21... Bxe5 {[%clk 0:02:24.2]} 22. f4
{[%clk 0:02:03.6]} 22... Bf6 {[%clk 0:02:22.2]} 23. Rac1 {[%clk 0:02:00]} 23...
Rc8 {[%clk 0:02:17.5]} 24. Bxd5 {[%clk 0:01:53.3]} 24... c5 {[%clk 0:01:45.2]}
25. g4 {[%clk 0:01:48.1]} 25... h6 {[%clk 0:01:42.5]} 26. Qg2 {[%clk 0:01:46.9]}
26... Bd4 {[%clk 0:01:17.5]} 27. g5 {[%clk 0:01:44.4]} 27... Kh8 {[%clk
0:01:18.2]} 28. f6 {[%clk 0:01:37.6]} 28... gxf6 {[%clk 0:01:09.8]} 29. Qh3
{[%clk 0:01:28.5]} 29... fxg5 {[%clk 0:00:43.1]} 30. Rxd4 {[%clk 0:01:20.1]}
30... Rcd8 {[%clk 0:00:30.6]} 31. Rdd1 {[%clk 0:01:13.9]} 31... gxf4 {[%clk
0:00:26.3]} 32. Qh4 {[%clk 0:01:03.9]} 32... Qg6 {[%clk 0:00:20.1]} 33. Rg1
{[%clk 0:00:57.1]} 33... Qd6 {[%clk 0:00:07]} 34. Be4 {[%clk 0:00:53.3]} 34...
Rg8 {[%clk 0:00:05.8]} 35. Rcf1 {[%clk 0:00:46.1]} 35... f5 {[%clk 0:00:06]} 36.
Bf3 {[%clk 0:00:44.5]} 36... Rde8 {[%clk 0:00:02.1]} 37. Qh5 {[%clk 0:00:43.4]}
1-0

[Event "Early-Titled-Tuesday-Blitz-December-26-2023"]
[Site "Chess.com"]
[Date "2023.12.26"]
[Round "8"]
[White "SahibSinghKnight"]
[Black "TitarovVasiliYouTube"]
[Result "1-0"]
[WhiteElo "2687"]
[BlackElo "2549"]
[TimeControl "180+1"]
[EndTime "9:28:43 PST"]
[Termination "SahibSinghKnight won by resignation"]

1. e4 {[%clk 0:03:00.9]} 1... c5 {[%clk 0:02:59.5]} 2. c3 {[%clk 0:02:58.5]}
2... Nf6 {[%clk 0:02:59.3]} 3. e5 {[%clk 0:02:58.4]} 3... Nd5 {[%clk 0:02:59.9]}
4. Nf3 {[%clk 0:02:59.1]} 4... d6 {[%clk 0:02:59.9]} 5. d4 {[%clk 0:02:59.1]}
5... cxd4 {[%clk 0:02:59.4]} 6. Bc4 {[%clk 0:02:59.7]} 6... Nb6 {[%clk
0:02:55.9]} 7. Bb3 {[%clk 0:02:59.9]} 7... Nc6 {[%clk 0:02:50.9]} 8. cxd4 {[%clk
0:02:56.1]} 8... d5 {[%clk 0:02:49.1]} 9. O-O {[%clk 0:02:55.2]} 9... e6 {[%clk
0:02:44.7]} 10. Nc3 {[%clk 0:02:54.8]} 10... Be7 {[%clk 0:02:44.6]} 11. Bc2
{[%clk 0:02:54.8]} 11... O-O {[%clk 0:02:44.2]} 12. Qd3 {[%clk 0:02:52]} 12...
g6 {[%clk 0:02:42.9]} 13. a3 {[%clk 0:02:51.3]} 13... Bd7 {[%clk 0:02:42.4]} 14.
Bh6 {[%clk 0:02:51.3]} 14... Re8 {[%clk 0:02:42.3]} 15. g3 {[%clk 0:02:51.4]}
15... Rc8 {[%clk 0:02:39.4]} 16. h4 {[%clk 0:02:51.1]} 16... Nc4 {[%clk
0:02:21.1]} 17. Rab1 {[%clk 0:02:45.4]} 17... a6 {[%clk 0:01:49.7]} 18. Ne2
{[%clk 0:02:42.2]} 18... N6a5 {[%clk 0:01:18.3]} 19. a4 {[%clk 0:02:41.6]} 19...
Nc6 {[%clk 0:01:16.1]} 20. Ng5 {[%clk 0:02:31.9]} 20... Nb4 {[%clk 0:01:12.9]}
21. Qf3 {[%clk 0:02:31.9]} 21... f6 {[%clk 0:00:52.2]} 22. Nxh7 {[%clk 0:01:16]}
22... Kxh7 {[%clk 0:00:52.6]} 23. Bxg6+ {[%clk 0:01:15.5]} 23... Kxg6 {[%clk
0:00:26.6]} 24. Nf4+ {[%clk 0:01:15.1]} 24... Kxh6 {[%clk 0:00:27.2]} 25. Qh5+
{[%clk 0:01:15.1]} 25... Kg7 {[%clk 0:00:27.9]} 26. Qg6+ {[%clk 0:01:15.3]}
26... Kh8 {[%clk 0:00:22.3]} 27. Nh5 {[%clk 0:00:52.4]} 27... Bf8 {[%clk
0:00:14.8]} 28. Nxf6 {[%clk 0:00:52.6]} 28... Qxf6 {[%clk 0:00:08.2]} 29. exf6
{[%clk 0:00:53.5]} 29... Nd6 {[%clk 0:00:02.3]} 30. f7 {[%clk 0:00:47.6]} 30...
Nxf7 {[%clk 0:00:02.7]} 31. Qxf7 {[%clk 0:00:48.5]} 31... Bg7 {[%clk 0:00:03.6]}
32. Qxd7 {[%clk 0:00:48.1]} 32... Bxd4 {[%clk 0:00:02.5]} 33. Qxb7 {[%clk
0:00:46.5]} 33... Nd3 {[%clk 0:00:02.2]} 34. Qf7 {[%clk 0:00:42.1]} 34... Rf8
{[%clk 0:00:02.5]} 35. Qh5+ {[%clk 0:00:41.7]} 35... Kg7 {[%clk 0:00:01.9]} 36.
Qg4+ {[%clk 0:00:42.3]} 36... Kh8 {[%clk 0:00:01.8]} 37. Qxd4+ {[%clk
0:00:43.2]} 1-0

[Event "Early-Titled-Tuesday-Blitz-December-26-2023"]
[Site "Chess.com"]
[Date "2023.12.26"]
[Round "8"]
[White "Romn69"]
[Black "MikeSailer"]
[Result "0-1"]
[WhiteElo "2362"]
[BlackElo "2198"]
[TimeControl "180+1"]
[EndTime "9:28:43 PST"]
[Termination "MikeSailer won on time"]

1. d4 {[%clk 0:03:00.9]} 1... d5 {[%clk 0:02:59.3]} 2. Nf3 {[%clk 0:03:00.3]}
2... Nf6 {[%clk 0:02:58.8]} 3. c4 {[%clk 0:03:00.7]} 3... Bf5 {[%clk 0:02:56.3]}
4. Qb3 {[%clk 0:02:52.3]} 4... e6 {[%clk 0:02:47.2]} 5. cxd5 {[%clk 0:02:32.9]}
5... exd5 {[%clk 0:02:43.8]} 6. Nc3 {[%clk 0:02:29.4]} 6... Nc6 {[%clk
0:02:39.1]} 7. Bg5 {[%clk 0:02:22.3]} 7... Bb4 {[%clk 0:02:38.4]} 8. e3 {[%clk
0:02:17.9]} 8... O-O {[%clk 0:02:35.4]} 9. Bb5 {[%clk 0:02:16.3]} 9... Bxc3+
{[%clk 0:02:34.3]} 10. bxc3 {[%clk 0:02:14]} 10... Na5 {[%clk 0:02:31.6]} 11.
Qd1 {[%clk 0:02:06.2]} 11... c6 {[%clk 0:02:31.2]} 12. Be2 {[%clk 0:02:00.6]}
12... Qd6 {[%clk 0:02:27.6]} 13. O-O {[%clk 0:01:46.2]} 13... Ne4 {[%clk
0:02:21.3]} 14. Bf4 {[%clk 0:01:44.4]} 14... Qa3 {[%clk 0:02:14]} 15. Bd3 {[%clk
0:01:28.1]} 15... Nxc3 {[%clk 0:02:09.2]} 16. Qc2 {[%clk 0:01:25.9]} 16... Bxd3
{[%clk 0:02:02.8]} 17. Qxd3 {[%clk 0:01:26.8]} 17... Nb5 {[%clk 0:01:54.7]} 18.
Qf5 {[%clk 0:01:25.8]} 18... Qe7 {[%clk 0:01:49.5]} 19. Ng5 {[%clk 0:01:22]}
19... g6 {[%clk 0:01:47.3]} 20. Qh3 {[%clk 0:01:21.7]} 20... h5 {[%clk
0:01:40.8]} 21. Rae1 {[%clk 0:00:54.9]} 21... Nd6 {[%clk 0:01:27.4]} 22. g4
{[%clk 0:00:28.5]} 22... f6 {[%clk 0:01:06.7]} 23. Nf3 {[%clk 0:00:24.8]} 23...
hxg4 {[%clk 0:01:01.8]} 24. Qxg4 {[%clk 0:00:25.7]} 24... Kg7 {[%clk 0:00:52]}
25. Nh4 {[%clk 0:00:19.5]} 25... Rg8 {[%clk 0:00:18.8]} 26. Qxg6+ {[%clk
0:00:05.7]} 26... Kf8 {[%clk 0:00:18.2]} 27. Bh6+ {[%clk 0:00:04.5]} 27... Rg7
{[%clk 0:00:10]} 0-1